bitfinex-derivatives/quotes_BTCF0:USTF0_20210404
["timestamp","ask_amount","ask_price","bid_price","bid_amount"]
[1617551394964,1.0,58095.0,58094.0,0.37725655]
[1617551395765,0.4732,58096.0,58094.0,0.37725655]
[1617551396266,1.0,58095.0,58094.0,0.37725655]
[1617551397067,0.4732,58096.0,58094.0,0.37725655]
[1617551397468,1.4732,58096.0,58094.0,0.37725655]
[1617551397667,1.4732,58096.0,58095.0,3.4983]
[1617551397868,0.4732,58096.0,58095.0,3.4983]
[1617551398067,1.4732,58096.0,58095.0,3.7683]
[1617551398269,1.4732,58096.0,58095.0,0.27]
[1617551399949,2.9732,58096.0,58075.0,0.35608651]
[1617551400117,11.22637,58096.0,58071.0,0.46337302]
[1617551400339,11.22637,58096.0,58076.0,0.27]
[1617551400502,5.0,58088.0,58076.0,0.27]
[1617551400732,5.0,58088.0,58072.0,0.27]
[1617551400894,5.0,58088.0,58077.0,0.27]
[1617551401121,5.0,58085.0,58077.0,0.27]
[1617551401299,5.0,58085.0,58072.0,0.27]
[1617551401528,1.13669,58078.0,58060.0,0.01]
[1617551401735,0.33669,58078.0,58060.0,0.01]
[1617551401905,0.10725655,58061.0,58056.0,0.27]
[1617551402113,1.10725655,58061.0,58058.0,0.01]
[1617551402491,1.0,58057.0,58054.0,0.10725655]
[1617551402721,1.0,58059.0,58056.0,0.27]
[1617551403086,0.99898922,58059.0,58055.0,0.26]
[1617551403284,1.0,58057.0,58054.0,0.10725655]
[1617551403717,1.0,58059.0,58055.0,0.27]
[1617551403927,5.0,58088.0,58055.0,0.27]
[1617551403928,1.0,58065.0,58055.0,0.27]
[1617551404099,1.0,58064.0,58060.0,3.3787]
[1617551404308,2.596,58079.0,58060.0,3.3787]
[1617551404508,2.596,58079.0,58061.0,0.27]
[1617551405076,1.0,58062.0,58061.0,0.27]
[1617551405978,1.10725655,58062.0,58061.0,0.37725655]
[1617551406176,0.10725655,58062.0,58061.0,0.37725655]
[1617551406377,1.10725655,58062.0,58061.0,0.37725655]
[1617551409582,1.10725655,58062.0,58049.0,0.35698894]
[1617551409785,1.10725655,58062.0,58048.0,0.35700121]
[1617551410021,1.0,58062.0,58053.0,0.10725655]
[1617551410202,2.6236,58054.0,58053.0,0.10725655]
[1617551410383,2.6236,58054.0,58049.0,0.01]
[1617551410616,1.1391,58049.0,58043.0,0.35706216]
[1617551410792,0.1391,58049.0,58034.0,0.3571006]
[1617551411185,0.1391,58049.0,58039.0,0.27]
[1617551411186,1.0,58044.0,58039.0,0.27]
[1617551411389,5.0,58044.0,58039.0,0.27]
[1617551411585,5.0,58044.0,58029.0,0.35774109]
[1617551411787,0.1391,58049.0,58040.0,0.27]
[1617551411987,0.10725655,58041.0,58040.0,0.27]
[1617551412189,0.10725655,58041.0,58035.0,0.10725655]
[1617551412390,1.10725655,58041.0,58035.0,0.10725655]
[1617551412588,1.10725655,58041.0,58040.0,0.27]
[1617551412989,1.10725655,58041.0,58035.0,0.10725655]
[1617551413188,1.10725655,58041.0,58040.0,0.27]
[1617551413389,1.10725655,58041.0,58035.0,0.10725655]
[1617551413390,0.10725655,58041.0,58037.0,0.27]
[1617551413588,0.10725655,58041.0,58036.0,0.01]
[1617551413789,0.10725655,58041.0,58035.0,0.10725655]
[1617551413989,0.10725655,58041.0,58038.0,0.62892967]
[1617551414191,0.10725655,58041.0,58038.0,0.35892967]
[1617551414591,0.10725655,58041.0,58039.0,0.27]
[1617551415192,0.10725655,58041.0,58039.0,0.62891193]
[1617551415193,1.0,58040.0,58039.0,0.62891193]
[1617551415392,1.10725655,58041.0,58039.0,0.62891193]
[1617551415594,1.0,58040.0,58039.0,0.79755468]
[1617551415992,1.0,58040.0,58039.0,4.14044275]
[1617551416192,1.0,58040.0,58039.0,4.41044275]
[1617551416392,0.10725655,58048.0,58039.0,4.41044275]
[1617551416594,0.10725655,58048.0,58039.0,4.92099371]
[1617551416994,0.10725655,58048.0,58045.0,0.35888855]
[1617551417494,0.10725655,58048.0,58046.0,0.27]
[1617551417993,0.10725655,58048.0,58047.0,0.10725655]
[1617551418396,1.10725655,58048.0,58047.0,0.11725655]
[1617551418794,1.24151655,58048.0,58041.0,0.35892237]
[1617551418993,5.0,58047.0,58041.0,0.35892237]
[1617551419194,5.0,58047.0,58033.0,0.3589385]
[1617551419393,3.3939,58044.0,58033.0,0.3589385]
[1617551419594,3.3939,58044.0,58038.0,0.27]
[1617551419998,1.10725655,58039.0,58034.0,0.35894432]
[1617551420398,1.10725655,58039.0,58035.0,0.36894323]
[1617551420900,1.0,58036.0,58035.0,0.06067303]
[1617551421298,1.0,58036.0,58035.0,0.27]
[1617551421698,0.10725655,58039.0,58033.0,0.62894212]
[1617551421898,1.0,58036.0,58034.0,0.01]
[1617551422500,1.0,58036.0,58034.0,0.36909103]
[1617551422899,1.0,58036.0,58032.0,0.10725655]
[1617551422900,1.0,58035.0,58033.0,0.62909202]
[1617551423299,1.0,58035.0,58033.0,0.35909202]
[1617551423498,1.0,58035.0,58034.0,0.27]
[1617551424100,1.0,58035.0,58034.0,0.68976145]
[1617551424500,1.0,58035.0,58034.0,0.41976145]
[1617551424799,1.0,58035.0,58034.0,0.68976145]
[1617551425001,0.10725655,58039.0,58034.0,0.68976145]
[1617551425399,1.0,58035.0,58034.0,0.68976145]
[1617551426018,0.10725655,58039.0,58034.0,0.68976145]
[1617551426019,1.0,58037.0,58034.0,0.68976145]
[1617551426409,1.0,58038.0,58036.0,0.79801669]
[1617551426599,1.10725655,58039.0,58036.0,0.79801669]
[1617551426801,1.10725655,58039.0,58037.0,0.27]
[1617551427011,1.10725655,58039.0,58038.0,0.79797156]
[1617551427211,1.0,58039.0,58038.0,0.79797156]
[1617551427400,1.0,58039.0,58038.0,0.80797156]
[1617551427603,1.0,58039.0,58038.0,0.86863559]
[1617551428000,1.0,58039.0,58038.0,0.80797156]
[1617551428220,1.0,58039.0,58038.0,0.91522811]
[1617551428405,1.0,58039.0,58038.0,0.53701098]
[1617551430208,1.0,58039.0,58038.0,0.47634375]
[1617551431004,1.0,58039.0,58038.0,0.11725655]
[1617551431206,1.0,58039.0,58038.0,0.47637609]
[1617551432007,1.0,58039.0,58038.0,0.11725655]
[1617551433507,1.0,58039.0,58038.0,0.47637715]
[1617551436014,1.0,58039.0,58038.0,0.61509715]
[1617551437823,0.99898888,58039.0,58038.0,0.61509715]
[1617551438019,1.0,58039.0,58038.0,0.61509715]
[1617551439923,0.10725655,58040.0,58038.0,4.03519715]
[1617551440721,0.10725655,58040.0,58039.0,0.8578788]
[1617551441121,1.10725655,58040.0,58039.0,1.1278788]
[1617551441323,1.10725655,58040.0,58039.0,0.6894095]
[1617551441922,1.10725655,58040.0,58039.0,0.8565295]
[1617551442124,1.10725655,58040.0,58039.0,3.9506295]
[1617551442323,0.10725655,58040.0,58039.0,3.9506295]
[1617551442524,0.10725655,58040.0,58039.0,4.48008793]
[1617551444125,0.10725655,58040.0,58039.0,5.14008793]
[1617551445128,0.10725655,58040.0,58039.0,4.48008793]
[1617551445129,1.10725655,58040.0,58039.0,4.48008793]
[1617551445827,1.10725655,58040.0,58039.0,3.9506295]
[1617551446035,1.0,58040.0,58039.0,0.8565295]
[1617551446227,1.0,58051.0,58039.0,0.8565295]
[1617551446429,1.0,58051.0,58039.0,1.79448567]
[1617551446829,1.0,58051.0,58050.0,0.79872378]
[1617551447030,0.10725655,58052.0,58050.0,4.26052378]
[1617551447232,0.10725655,58052.0,58050.0,4.53052378]
[1617551447432,1.0,58051.0,58050.0,4.17109808]
[1617551447833,1.0,58051.0,58050.0,4.53051678]
[1617551448036,0.10725655,58052.0,58050.0,4.53051678]
[1617551448234,0.10725655,58052.0,58051.0,0.10725655]
[1617551448535,0.10725655,58052.0,58051.0,1.20342885]
[1617551448734,0.10725655,58052.0,58051.0,1.47342885]
[1617551449236,1.10725655,58052.0,58051.0,1.47342885]
[1617551449635,0.10725655,58052.0,58051.0,1.47342885]
[1617551450037,1.10725655,58052.0,58051.0,1.47342885]
[1617551450237,0.10725655,58052.0,58051.0,1.47342885]
[1617551451940,1.0,58055.0,58051.0,1.47342885]
[1617551452141,1.0,58061.0,58051.0,1.47342885]
[1617551452342,1.0,58061.0,58060.0,0.10725655]
[1617551452542,1.0,58063.0,58060.0,0.10725655]
[1617551452763,1.0,58061.0,58060.0,0.79729425]
[1617551453144,1.0,58061.0,58060.0,0.37725655]
[1617551453352,1.0,58062.0,58060.0,0.37725655]
[1617551453544,1.0,58062.0,58060.0,0.73664428]
[1617551453768,1.0,58063.0,58060.0,0.73664428]
[1617551453981,1.0,58072.0,58061.0,0.42002929]
[1617551454174,1.0,58072.0,58062.0,3.2594]
[1617551454365,0.452,58073.0,58071.0,0.10725655]
[1617551454366,1.452,58073.0,58071.0,0.10725655]
[1617551454542,1.452,58073.0,58071.0,0.27455655]
[1617551454744,0.452,58073.0,58072.0,0.99063611]
[1617551455143,0.452,58073.0,58072.0,1.28931298]
[1617551455748,0.452,58073.0,58072.0,1.34994485]
[1617551456145,0.452,58073.0,58072.0,1.78908893]
[1617551456544,0.452,58073.0,58072.0,1.12908893]
[1617551457544,0.0048933,58111.0,58072.0,3.12908893]
[1617551457744,0.0048933,58111.0,58101.0,3.43263]
[1617551457944,0.00491498,58108.0,58101.0,3.43263]
[1617551458144,0.00491498,58108.0,58102.0,0.27]
[1617551458347,0.34703644,58113.0,58107.0,0.10725655]
[1617551458348,0.00491831,58113.0,58107.0,0.10725655]
[1617551458748,0.74820852,58115.0,58108.0,0.27]
[1617551458749,0.46372106,58115.0,58108.0,0.27]
[1617551459149,0.00491855,58112.0,58107.0,0.10725655]
[1617551459349,1.0,58109.0,58107.0,0.10725655]
[1617551459551,1.0,58109.0,58108.0,0.27]
[1617551459751,0.00491855,58112.0,58108.0,0.27]
[1617551459952,0.00491855,58112.0,58107.0,0.10725655]
[1617551460152,0.00491773,58111.0,58107.0,0.10725655]
[1617551460351,0.00491773,58111.0,58108.0,0.27]
[1617551460551,0.00491814,58112.0,58107.0,0.10725655]
[1617551460753,1.0,58108.0,58107.0,0.10725655]
[1617551461153,1.0,58108.0,58107.0,0.37725655]
[1617551462353,1.10725655,58108.0,58107.0,0.37725655]
[1617551463971,1.10725655,58108.0,58107.0,3.65815655]
[1617551468359,0.10725655,58108.0,58107.0,3.65815655]
[1617551468559,1.10725655,58108.0,58107.0,3.65815655]
[1617551468763,1.10725655,58108.0,58107.0,0.27]
[1617551468960,3.79703655,58108.0,58095.0,0.35898241]
[1617551469361,3.79703655,58108.0,58061.0,4.77721256]
[1617551469362,0.2,58107.0,58096.0,0.27]
[1617551469764,0.2,58107.0,58093.0,0.35901099]
[1617551469962,0.2,58107.0,58087.0,0.35903489]
[1617551470162,0.2,58107.0,58097.0,0.01]
[1617551470364,0.2,58107.0,58092.0,0.27]
[1617551470564,0.10725655,58098.0,58094.0,0.10725655]
[1617551470764,0.10725655,58098.0,58095.0,0.26]
[1617551470963,0.10725655,58098.0,58094.0,0.10725655]
[1617551471163,1.0,58095.0,58094.0,0.10725655]
[1617551471367,1.0,58095.0,58063.0,0.09093055]
[1617551471368,1.11684,58095.0,58084.0,0.35904889]
[1617551471565,1.11684,58095.0,58094.0,0.27]
[1617551471965,1.11684,58095.0,58086.0,0.27]
[1617551472166,1.11684,58095.0,58082.0,0.35884106]
[1617551472366,0.11684,58095.0,58087.0,0.27]
[1617551472566,2.5326,58108.0,58093.0,0.10725655]
[1617551472764,2.5326,58108.0,58093.0,0.23887655]
[1617551472965,1.0,58097.0,58094.0,0.26]
[1617551473166,1.0,58096.0,58094.0,0.26]
[1617551473366,1.0,58097.0,58094.0,0.26]
[1617551473568,1.0,58099.0,58094.0,0.26]
[1617551473969,1.0,58101.0,58094.0,0.26]
[1617551474288,1.0,58103.0,58094.0,0.26]
[1617551474483,1.0,58103.0,58102.0,0.10725655]
[1617551474667,3.4987,58103.0,58102.0,0.10725655]
[1617551474897,4.4987,58103.0,58102.0,0.37725655]
[1617551478072,4.6987,58103.0,58102.0,0.37725655]
[1617551478473,4.4987,58103.0,58102.0,0.37725655]
[1617551479374,4.4987,58103.0,58073.0,0.49836656]
[1617551479375,4.4987,58103.0,58083.0,0.35882642]
[1617551479575,1.7,58102.0,58083.0,0.35882642]
[1617551479776,1.7,58102.0,58085.0,0.27]
[1617551479976,5.0,58093.0,58085.0,0.27]
[1617551480175,5.0,58093.0,58078.0,0.43856563]
[1617551480176,2.9229,58083.0,58078.0,0.35887697]
[1617551480376,3.05703,58083.0,58078.0,0.35887697]
[1617551480575,0.10725655,58079.0,58078.0,0.10725655]
[1617551481075,1.10725655,58079.0,58078.0,0.37725655]
[1617551483277,1.10725655,58079.0,58078.0,0.73644203]
[1617551485480,0.10725655,58079.0,58078.0,0.73644203]
[1617551486080,1.10725655,58079.0,58078.0,0.73644203]
[1617551486481,1.10725655,58079.0,58078.0,0.37725655]
[1617551486680,4.24535655,58079.0,58078.0,0.37725655]
[1617551488885,4.24535655,58079.0,58078.0,0.73689173]
[1617551489487,4.24535655,58079.0,58078.0,0.37725655]
[1617551489888,4.24535655,58079.0,58078.0,0.27]
[1617551490087,4.44535655,58079.0,58075.0,0.35965709]
[1617551490288,4.44535655,58079.0,58071.0,0.35967914]
[1617551490487,1.0,58076.0,58071.0,0.35967914]
[1617551490688,0.22468655,58072.0,58071.0,0.27]
[1617551490887,1.22468655,58072.0,58071.0,0.27]
[1617551491088,1.22468655,58072.0,58065.0,0.10725655]
[1617551491288,1.22468655,58072.0,58071.0,0.27]
[1617551491488,4.60988655,58072.0,58071.0,0.27]
[1617551491688,4.60988655,58072.0,58066.0,0.01]
[1617551491888,4.60988655,58072.0,58071.0,0.27]
[1617551492091,3.60988655,58072.0,58071.0,0.27]
[1617551492289,3.60988655,58072.0,58066.0,0.02]
[1617551492489,3.60988655,58072.0,58071.0,0.27]
[1617551492490,4.60988655,58072.0,58071.0,0.27]
[1617551492789,4.60988655,58072.0,58066.0,0.03]
[1617551493191,3.60988655,58072.0,58071.0,0.27]
[1617551493390,3.60988655,58072.0,58065.0,0.10725655]
[1617551493391,0.22468655,58072.0,58066.0,0.38969281]
[1617551493591,0.93935952,58067.0,58066.0,0.38969281]
[1617551493791,0.10725655,58072.0,58071.0,0.36046439]
[1617551494191,0.10725655,58072.0,58071.0,0.63046439]
[1617551494392,2.7487,58073.0,58071.0,0.63046439]
[1617551494592,2.7487,58073.0,58072.0,0.10725655]
[1617551494991,3.7487,58073.0,58072.0,0.10725655]
[1617551495193,3.7487,58073.0,58072.0,0.46771121]
[1617551498692,3.85595655,58073.0,58072.0,0.46771121]
[1617551500596,3.85595655,58073.0,58072.0,0.90865002]
[1617551503698,1.10725655,58073.0,58072.0,0.90865002]
[1617551503898,1.10725655,58073.0,58072.0,1.06313002]
[1617551504099,1.10725655,58073.0,58072.0,0.62219121]
[1617551504499,1.10725655,58073.0,58072.0,1.56727703]
[1617551506200,0.10725655,58073.0,58072.0,1.56727703]
[1617551506401,1.10725655,58073.0,58072.0,1.56727703]
[1617551507303,1.10725655,58073.0,58072.0,0.26173655]
[1617551507501,1.10725655,58073.0,58072.0,0.10725655]
[1617551507902,1.10725655,58073.0,58072.0,1.41428671]
[1617551508703,1.10725655,58073.0,58072.0,0.9115828]
[1617551509105,1.10725655,58073.0,58072.0,1.41429275]
[1617551511506,0.10725655,58073.0,58072.0,1.41429275]
[1617551513005,1.10725655,58073.0,58072.0,1.41429275]
[1617551513908,1.0,58073.0,58072.0,1.41429275]
[1617551514307,1.0,58074.0,58072.0,1.41429275]
[1617551514907,1.0,58074.0,58073.0,1.36792566]
[1617551515309,1.0,58077.0,58073.0,1.36792566]
[1617551515809,1.0,58075.0,58073.0,1.36792566]
[1617551516010,1.0,58075.0,58073.0,0.62375701]
[1617551516209,1.0,58074.0,58073.0,0.62375701]
[1617551516409,1.0,58074.0,58072.0,0.10725655]
[1617551516410,1.0,58074.0,58072.0,0.67011712]
[1617551516810,1.0,58074.0,58073.0,1.30664752]
[1617551517712,1.0,58074.0,58073.0,1.57664752]
[1617551517915,1.0,58079.0,58073.0,1.57664752]
[1617551518113,1.0,58084.0,58073.0,1.77664752]
[1617551518314,1.0,58084.0,58076.0,2.5692]
[1617551518515,1.0,58084.0,58078.0,1.30656033]
[1617551518715,1.0,58084.0,58083.0,0.10725655]
[1617551518915,1.0,58084.0,58083.0,1.57955643]
[1617551519115,1.0,58084.0,58083.0,1.83955643]
[1617551519516,1.0,58086.0,58083.0,1.90018112]
[1617551519714,1.0,58084.0,58083.0,1.90018112]
[1617551519915,1.0,58084.0,58083.0,0.53299655]
[1617551520315,1.0,58084.0,58083.0,1.76476895]
[1617551520716,1.0,58084.0,58083.0,1.67383086]
[1617551521115,1.0,58084.0,58083.0,1.73445684]
[1617551525042,0.10725655,58088.0,58083.0,1.83993684]
[1617551525230,1.0,58084.0,58083.0,1.83993684]
[1617551525824,1.0,58085.0,58083.0,2.03993684]
[1617551526225,1.10725655,58088.0,58084.0,1.36791932]
[1617551526626,1.10725655,58088.0,58087.0,1.3072905]
[1617551527025,1.10725655,58088.0,58087.0,1.5772905]
[1617551527626,1.10725655,58088.0,58087.0,1.63791614]
[1617551527627,0.10725655,58088.0,58087.0,1.63791614]
[1617551530631,1.10725655,58088.0,58087.0,1.63791614]
[1617551532236,1.10725655,58088.0,58087.0,1.1351121]
[1617551533636,1.10725655,58088.0,58087.0,1.63860173]
[1617551534839,1.10725655,58088.0,58087.0,0.27]
[1617551535039,1.10725655,58088.0,58087.0,1.6699414]
[1617551535240,1.10725655,58088.0,58087.0,1.3999414]
[1617551535440,1.10725655,58088.0,58087.0,1.30900294]
[1617551535639,1.10725655,58088.0,58087.0,1.57900294]
[1617551549659,1.10725655,58088.0,58087.0,1.30900294]
[1617551550060,4.58555655,58088.0,58087.0,1.30900294]
[1617551550260,9.58555655,58088.0,58087.0,1.30900294]
[1617551550461,9.58555655,58088.0,58087.0,0.36249312]
[1617551550462,9.59048476,58088.0,58087.0,0.36249312]
[1617551550861,11.3755583,58088.0,58087.0,0.36249312]
[1617551551060,9.9266583,58088.0,58087.0,0.36249312]
[1617551551260,9.9266583,58088.0,58085.0,0.36263851]
[1617551551261,9.8755583,58088.0,58085.0,0.36263851]
[1617551551663,1.28988053,58086.0,58085.0,0.36263851]
[1617551552263,1.0,58086.0,58085.0,0.36263851]
[1617551552462,0.00493048,58087.0,58085.0,0.36263851]
[1617551552861,1.0,58086.0,58085.0,0.36263851]
[1617551553062,1.0,58086.0,58080.0,0.10725655]
[1617551553063,3.6576,58086.0,58081.0,0.5036319]
[1617551553461,3.6576,58086.0,58081.0,0.27]
[1617551553462,1.0,58082.0,58081.0,0.27]
[1617551553863,1.0,58082.0,58081.0,1.57943072]
[1617551554664,3.6964,58082.0,58081.0,1.57943072]
[1617551554864,3.80365655,58082.0,58081.0,1.57943072]
[1617551555065,3.80365655,58082.0,58081.0,1.07580352]
[1617551555664,2.80365655,58082.0,58081.0,1.07580352]
[1617551555864,3.80365655,58082.0,58081.0,1.07580352]
[1617551558593,5.30365655,58082.0,58081.0,0.80580352]
[1617551558787,10.30365655,58082.0,58081.0,0.80580352]
[1617551559571,10.59320634,58082.0,58080.0,0.36266711]
[1617551559871,0.28955659,58081.0,58080.0,0.36266711]
[1617551560070,1.94826659,58081.0,58080.0,0.36266711]
[1617551560269,0.44826659,58081.0,58080.0,0.36266711]
[1617551560669,1.94826659,58081.0,58080.0,0.36266711]
[1617551560870,7.94826659,58081.0,58080.0,0.36266711]
[1617551561572,6.44826659,58081.0,58080.0,0.36266711]
[1617551562173,7.6636287,58081.0,58078.0,0.36228952]
[1617551562475,7.6636287,58081.0,58079.0,0.36229001]
[1617551562673,1.7,58080.0,58079.0,0.36229001]
[1617551562872,1.5,58080.0,58079.0,0.36229001]
[1617551563073,7.50973617,58080.0,58076.0,0.36230147]
[1617551563473,7.78918522,58080.0,58074.0,0.36230748]
[1617551563673,1.5,58076.0,58074.0,0.36230748]
[1617551563874,1.50491392,58076.0,58073.0,0.36231133]
[1617551564073,1.5,58074.0,58073.0,0.36231133]
[1617551564273,1.7,58074.0,58073.0,0.36231133]
[1617551564476,7.70491346,58074.0,58072.0,0.36231248]
[1617551564875,7.70491346,58074.0,58071.0,0.36231657]
[1617551565077,1.60725655,58072.0,58071.0,0.36231657]
[1617551565280,7.80725655,58072.0,58071.0,0.10641657]
[1617551565489,8.09605193,58072.0,58058.0,0.44289746]
[1617551566079,6.0,58059.0,58054.0,0.44291086]
[1617551566279,3.6814,58055.0,58054.0,0.44291086]
[1617551566478,3.6814,58055.0,58052.0,0.44291795]
[1617551566479,1.5,58054.0,58052.0,0.44291795]
[1617551566679,2.7034,58053.0,58052.0,0.44291795]
[1617551566879,2.7034,58053.0,58051.0,0.44291952]
[1617551567080,0.10725655,58052.0,58051.0,0.44291952]
[1617551567281,0.10725655,58052.0,58047.0,0.50331764]
[1617551567480,1.10725655,58052.0,58047.0,0.50331764]
[1617551567682,0.10725655,58052.0,58051.0,0.50357889]
[1617551568083,0.10725655,58052.0,58051.0,0.44291954]
[1617551568884,1.10725655,58052.0,58051.0,0.44291954]
[1617551571989,6.10725655,58052.0,58051.0,0.44291954]
[1617551572189,3.32265655,58052.0,58051.0,0.44291954]
[1617551572394,9.32265655,58052.0,58051.0,0.44291954]
[1617551572792,9.32265655,58052.0,58033.0,0.09098716]
[1617551572793,9.45548655,58052.0,58049.0,0.06065893]
[1617551573190,9.45548655,58052.0,58048.0,0.44263236]
[1617551573390,9.45548655,58052.0,58040.0,0.44075875]
[1617551573791,5.0,58050.0,58041.0,0.44076368]
[1617551574191,8.45548655,58052.0,58041.0,0.06066024]
[1617551574591,8.45548655,58052.0,58042.0,0.06066009]
[1617551574992,3.45548655,58052.0,58042.0,0.06066009]
[1617551575193,1.10725655,58043.0,58042.0,0.06066009]
[1617551575792,1.10725655,58043.0,58040.0,0.44076328]
[1617551576192,0.10725655,58043.0,58041.0,0.27]
[1617551576592,0.10725655,58043.0,58040.0,0.44076328]
[1617551576793,0.10725655,58043.0,58042.0,0.06066014]
[1617551577393,0.10725655,58043.0,58041.0,0.06066019]
[1617551577793,0.10725655,58043.0,58040.0,0.44076673]
[1617551577995,1.0,58042.0,58040.0,0.44076673]
[1617551578193,1.0,58041.0,58040.0,0.71076673]
[1617551578594,1.0,58041.0,58040.0,0.44076673]
[1617551578794,1.0,58041.0,58040.0,0.77142703]
[1617551580396,0.10725655,58043.0,58040.0,0.77142703]
[1617551580599,1.0,58041.0,58040.0,0.77142703]
[1617551582198,1.0,58041.0,58040.0,0.3306603]
[1617551582804,1.0,58041.0,58040.0,0.27]
[1617551583203,4.0945,58041.0,58040.0,0.44077692]
[1617551583602,4.0945,58041.0,58040.0,0.71077692]
[1617551583802,4.0945,58041.0,58040.0,0.44077692]
[1617551584002,3.0945,58041.0,58040.0,0.50143841]
[1617551584201,3.0945,58041.0,58040.0,0.77143841]
[1617551584402,4.0945,58041.0,58040.0,0.71077692]
[1617551584803,4.0945,58041.0,58040.0,0.77143923]
[1617551585805,1.0,58041.0,58040.0,0.77143923]
[1617551589008,0.10725655,58043.0,58040.0,0.77143923]
[1617551589208,1.0,58041.0,58040.0,0.77143923]
[1617551589409,1.0,58041.0,58040.0,0.27]
[1617551589809,1.0,58041.0,58040.0,0.71060052]
[1617551590611,1.0,58041.0,58040.0,1.07109203]
[1617551591213,1.0,58041.0,58040.0,1.17834858]
[1617551591614,0.99898903,58041.0,58040.0,1.67902369]
[1617551591814,1.0,58041.0,58040.0,1.17834858]
[1617551592114,1.0,58043.0,58040.0,1.67902142]
[1617551592715,2.8484,58048.0,58042.0,1.30243049]
[1617551592914,1.0,58044.0,58042.0,1.30243049]
[1617551593115,1.0,58044.0,58043.0,0.27]
[1617551593516,1.0,58044.0,58043.0,1.57241468]
[1617551593915,1.0,58044.0,58043.0,1.36307239]
[1617551594315,1.0,58044.0,58043.0,1.63307239]
[1617551597416,1.0,58044.0,58043.0,1.13214367]
[1617551598418,1.16778,58044.0,58043.0,0.86214367]
[1617551599018,1.16778,58044.0,58043.0,0.42132639]
[1617551599419,1.16778,58044.0,58042.0,0.36073167]
[1617551600219,1.16778,58044.0,58043.0,0.36145612]
[1617551602322,1.16778,58044.0,58043.0,0.80322261]
[1617551602520,1.0,58044.0,58043.0,1.07322261]
[1617551602720,1.0,58044.0,58043.0,1.13388999]
[1617551604421,1.0,58044.0,58043.0,1.07326582]
[1617551605324,1.0,58044.0,58043.0,1.13393247]
[1617551606228,1.0,58044.0,58043.0,0.27]
[1617551606626,1.0,58044.0,58037.0,0.27]
[1617551606828,1.12745,58044.0,58043.0,0.80329047]
[1617551607029,0.12745,58044.0,58043.0,1.07329047]
[1617551607229,0.17935,58044.0,58043.0,0.80329047]
[1617551607430,1.17935,58044.0,58043.0,0.80329047]
[1617551607630,1.12745,58044.0,58043.0,1.07329047]
[1617551610533,1.12745,58044.0,58043.0,1.21008047]
[1617551610935,1.12745,58044.0,58043.0,1.71311271]
[1617551611339,1.12745,58044.0,58043.0,1.82036926]
[1617551611837,1.12745,58044.0,58043.0,1.91135989]
[1617551612038,0.12745,58044.0,58043.0,1.91135989]
[1617551612238,1.0,58045.0,58043.0,1.91135989]
[1617551613140,1.0,58045.0,58044.0,1.30783448]
[1617551613539,1.0,58045.0,58044.0,1.57783448]
[1617551614441,1.0,58046.0,58044.0,1.57783448]
[1617551614641,1.0,58047.0,58044.0,1.57783448]
[1617551614941,1.0,58050.0,58045.0,1.30849643]
[1617551615142,1.0,58051.0,58045.0,1.30849643]
[1617551615342,1.10725655,58052.0,58050.0,0.10725655]
[1617551615544,0.10725655,58052.0,58051.0,1.30849627]
[1617551615743,0.10725655,58052.0,58051.0,1.57849627]
[1617551616343,1.10725655,58052.0,58051.0,1.57849627]
[1617551619847,1.10725655,58052.0,58051.0,0.27]
[1617551620245,1.10725655,58052.0,58051.0,1.57847242]
[1617551622349,1.10725655,58052.0,58051.0,2.14345374]
[1617551622949,3.93595655,58052.0,58051.0,2.14345374]
[1617551624553,2.93595655,58052.0,58051.0,2.14345374]
[1617551624750,3.93595655,58052.0,58051.0,2.14345374]
[1617551625352,3.93595655,58052.0,58051.0,1.57847242]
[1617551628159,3.93595655,58052.0,58051.0,1.73763242]
[1617551631562,3.93595655,58052.0,58051.0,1.57847242]
[1617551633465,4.07513655,58052.0,58051.0,1.57847242]
[1617551633665,4.07513655,58052.0,58051.0,1.30847242]
[1617551636467,1.24643655,58052.0,58051.0,1.30847242]
[1617551636668,1.10725655,58052.0,58051.0,1.30847242]
[1617551637968,1.10725655,58052.0,58051.0,1.57847242]
[1617551638769,1.10725655,58052.0,58051.0,1.63913283]
[1617551644983,4.63045655,58052.0,58051.0,0.27]
[1617551645382,4.63045655,58052.0,58051.0,1.31130628]
[1617551645783,4.63045655,58052.0,58051.0,1.58130628]
[1617551645982,4.63045655,58052.0,58051.0,1.31130628]
[1617551646383,4.63045655,58052.0,58051.0,1.64196476]
[1617551656719,4.63045655,58052.0,58051.0,1.37196476]
[1617551657093,3.63045655,58052.0,58051.0,1.37196476]
[1617551657293,4.63045655,58052.0,58051.0,1.37196476]
[1617551657695,4.63045655,58052.0,58051.0,0.80695771]
[1617551658095,4.63045655,58052.0,58051.0,0.8676216]
[1617551658496,4.83045655,58052.0,58051.0,0.80695771]
[1617551658896,4.83249334,58052.0,58051.0,0.80695771]
[1617551659297,4.84024928,58052.0,58051.0,0.80695771]
[1617551659895,5.12125802,58052.0,58051.0,0.36313097]
[1617551660297,5.12125802,58052.0,58051.0,0.42380125]
[1617551660500,1.59805802,58052.0,58051.0,0.42380125]
[1617551661098,1.59805802,58052.0,58051.0,0.36313097]
[1617551662101,6.59805802,58052.0,58051.0,0.36313097]
[1617551662503,6.94675393,58052.0,58051.0,0.36313097]
[1617551663505,8.44675393,58052.0,58049.0,0.44430197]
[1617551663703,8.44675393,58052.0,58049.0,0.42500197]
[1617551663904,8.87310633,58052.0,58043.0,0.44433062]
[1617551664104,6.0,58050.0,58043.0,0.44433062]
[1617551664303,6.0,58050.0,58028.0,3.0909]
[1617551664304,2.6063,58039.0,58028.0,3.0909]
[1617551664504,2.7147,58039.0,58028.0,3.0909]
[1617551664705,0.00204896,58036.0,58029.0,0.09102028]
[1617551665205,0.0020488,58035.0,58029.0,0.09102028]
[1617551665405,1.0,58030.0,58029.0,0.09102028]
[1617551665605,1.10725655,58030.0,58029.0,0.09102028]
[1617551666407,3.1749,58025.0,58023.0,0.50337694]
[1617551666607,3.32195,58025.0,58023.0,0.50337694]
[1617551666808,0.14705,58025.0,58024.0,0.01]